[Event "Late-Titled-Tuesday-Blitz-October-10-2023"]
[Site "Chess.com"]
[Date "2023.10.10"]
[Round "1"]
[White "ameetghasi100"]
[Black "EfrenRamos1"]
[Result "1-0"]
[WhiteElo "2726"]
[BlackElo "2404"]
[TimeControl "180+1"]
[EndTime "14:07:05 PDT"]
[Termination "ameetghasi100 won by resignation"]

1. c4 {[%clk 0:02:59.4]} 1... c6 {[%clk 0:02:58.9]} 2. e3 {[%clk 0:02:59]} 2...
d5 {[%clk 0:02:58.6]} 3. Nf3 {[%clk 0:02:59.9]} 3... Nf6 {[%clk 0:02:58.4]} 4.
b3 {[%clk 0:03:00.1]} 4... g6 {[%clk 0:02:58]} 5. Bb2 {[%clk 0:03:00.6]} 5...
Bg7 {[%clk 0:02:58]} 6. Be2 {[%clk 0:03:00.6]} 6... a5 {[%clk 0:02:57.6]} 7. O-O
{[%clk 0:02:59.1]} 7... O-O {[%clk 0:02:57.2]} 8. a3 {[%clk 0:02:57.5]} 8... Bg4
{[%clk 0:02:55.6]} 9. h3 {[%clk 0:02:57.4]} 9... Bxf3 {[%clk 0:02:55]} 10. Bxf3
{[%clk 0:02:58.3]} 10... Nbd7 {[%clk 0:02:51.7]} 11. cxd5 {[%clk 0:02:57.6]}
11... cxd5 {[%clk 0:02:48]} 12. Nc3 {[%clk 0:02:57.3]} 12... e6 {[%clk
0:02:40.8]} 13. Rc1 {[%clk 0:02:57.1]} 13... Ne5 {[%clk 0:02:34.4]} 14. Be2
{[%clk 0:02:54.3]} 14... Nc6 {[%clk 0:02:32.8]} 15. Nb5 {[%clk 0:02:52.2]} 15...
Ne4 {[%clk 0:02:30.3]} 16. Bxg7 {[%clk 0:02:49]} 16... Kxg7 {[%clk 0:02:31.2]}
17. Qc2 {[%clk 0:02:41.9]} 17... Rc8 {[%clk 0:02:28.5]} 18. Qb2+ {[%clk
0:02:27.6]} 18... Qf6 {[%clk 0:02:17.2]} 19. d4 {[%clk 0:02:26.2]} 19... Qe7
{[%clk 0:02:07.1]} 20. Bd3 {[%clk 0:02:24.4]} 20... Nd6 {[%clk 0:02:06.8]} 21.
Nc3 {[%clk 0:02:25]} 21... b6 {[%clk 0:01:29.7]} 22. Rc2 {[%clk 0:02:22.4]}
22... Na7 {[%clk 0:01:27.1]} 23. Rfc1 {[%clk 0:02:21.1]} 23... Qb7 {[%clk
0:01:26.2]} 24. h4 {[%clk 0:01:55.2]} 24... h5 {[%clk 0:01:24.7]} 25. Re1 {[%clk
0:01:38.1]} 25... f5 {[%clk 0:01:23]} 26. Rec1 {[%clk 0:01:34]} 26... Rf7 {[%clk
0:01:21.1]} 27. Ne2 {[%clk 0:01:33.5]} 27... Rfc7 {[%clk 0:01:19.9]} 28. Nf4
{[%clk 0:01:33.6]} 28... Kf7 {[%clk 0:01:19.3]} 29. f3 {[%clk 0:01:23.3]} 29...
Rxc2 {[%clk 0:01:15.9]} 30. Rxc2 {[%clk 0:01:23.2]} 30... Rxc2 {[%clk
0:01:15.7]} 31. Qxc2 {[%clk 0:01:22.8]} 31... Qc6 {[%clk 0:01:14.5]} 32. Qf2
{[%clk 0:01:19.6]} 32... Qc1+ {[%clk 0:01:10.4]} 33. Kh2 {[%clk 0:01:20]} 33...
Qxa3 {[%clk 0:01:09.8]} 34. Qg3 {[%clk 0:01:20.4]} 34... Qc1 {[%clk 0:01:00.4]}
35. Qxg6+ {[%clk 0:01:18.5]} 35... Kf8 {[%clk 0:00:56.4]} 36. Nxe6+ {[%clk
0:01:13.5]} 36... Ke7 {[%clk 0:00:55.5]} 37. Nf4 {[%clk 0:01:13.7]} 37... Nac8
{[%clk 0:00:53.9]} 38. Nxd5+ {[%clk 0:01:04.8]} 38... Kd8 {[%clk 0:00:53.4]} 39.
Bxf5 {[%clk 0:00:55.8]} 39... Nxf5 {[%clk 0:00:50.9]} 40. Qxf5 {[%clk
0:00:53.2]} 40... Qc6 {[%clk 0:00:49.4]} 41. e4 {[%clk 0:00:51.6]} 41... b5
{[%clk 0:00:48.6]} 42. Qf8+ {[%clk 0:00:38.1]} 42... Kd7 {[%clk 0:00:44.9]} 43.
Qf7+ {[%clk 0:00:38.3]} 43... Kd8 {[%clk 0:00:44.8]} 44. e5 {[%clk 0:00:38.4]}
44... a4 {[%clk 0:00:33.5]} 45. bxa4 {[%clk 0:00:37.7]} 45... bxa4 {[%clk
0:00:33.5]} 46. Nf4 {[%clk 0:00:36.1]} 46... a3 {[%clk 0:00:33]} 47. Ne6+ {[%clk
0:00:34.1]} 47... Qxe6 {[%clk 0:00:33.1]} 48. Qxe6 {[%clk 0:00:35]} 1-0

[Event "Late-Titled-Tuesday-Blitz-October-10-2023"]
[Site "Chess.com"]
[Date "2023.10.10"]
[Round "1"]
[White "MBA_CHESS_2021"]
[Black "BigAl"]
[Result "0-1"]
[WhiteElo "2233"]
[BlackElo "2592"]
[TimeControl "180+1"]
[EndTime "14:07:05 PDT"]
[Termination "BigAl won on time"]

1. d4 {[%clk 0:03:00.2]} 1... Nf6 {[%clk 0:03:00]} 2. c4 {[%clk 0:02:59.2]} 2...
g6 {[%clk 0:03:00.9]} 3. Nc3 {[%clk 0:02:58.9]} 3... Bg7 {[%clk 0:03:01.8]} 4.
e4 {[%clk 0:02:59.1]} 4... O-O {[%clk 0:03:02.7]} 5. Be2 {[%clk 0:02:58.2]} 5...
d6 {[%clk 0:03:03.6]} 6. Bg5 {[%clk 0:02:58.3]} 6... c5 {[%clk 0:03:04.4]} 7. d5
{[%clk 0:02:58.1]} 7... b5 {[%clk 0:03:04.7]} 8. cxb5 {[%clk 0:02:57.9]} 8... a6
{[%clk 0:03:05.4]} 9. bxa6 {[%clk 0:02:58]} 9... Qa5 {[%clk 0:03:02.3]} 10. Qd2
{[%clk 0:02:52.3]} 10... Bxa6 {[%clk 0:02:49]} 11. Bxa6 {[%clk 0:02:25.6]} 11...
Rxa6 {[%clk 0:02:42.8]} 12. Nge2 {[%clk 0:02:25.6]} 12... Nbd7 {[%clk
0:02:43.4]} 13. O-O {[%clk 0:02:24.8]} 13... Rb8 {[%clk 0:02:38.9]} 14. Rab1
{[%clk 0:02:10.9]} 14... Ne5 {[%clk 0:02:27.5]} 15. b3 {[%clk 0:02:06.9]} 15...
Qb4 {[%clk 0:02:26]} 16. f4 {[%clk 0:01:59.5]} 16... Ned7 {[%clk 0:02:19.5]} 17.
Qd3 {[%clk 0:01:51]} 17... Rab6 {[%clk 0:02:10.7]} 18. Na4 {[%clk 0:01:35.8]}
18... R6b7 {[%clk 0:02:03.8]} 19. Nec3 {[%clk 0:01:35.3]} 19... Qa3 {[%clk
0:01:54.7]} 20. Rbe1 {[%clk 0:01:30.8]} 20... h6 {[%clk 0:01:31.9]} 21. Bh4
{[%clk 0:01:29.5]} 21... Rb4 {[%clk 0:01:32.4]} 22. Bxf6 {[%clk 0:00:33]} 22...
Bxf6 {[%clk 0:01:22]} 23. e5 {[%clk 0:00:32.6]} 23... dxe5 {[%clk 0:01:19.1]}
24. Ne4 {[%clk 0:00:32.1]} 24... c4 {[%clk 0:01:09.8]} 25. Qh3 {[%clk
0:00:16.6]} 25... cxb3 {[%clk 0:01:08.2]} 26. axb3 {[%clk 0:00:15.7]} 26... Rxb3
{[%clk 0:00:59]} 27. Qxd7 {[%clk 0:00:14.3]} 27... exf4 {[%clk 0:00:47.4]} 28.
Nxf6+ {[%clk 0:00:10.8]} 28... exf6 {[%clk 0:00:47.9]} 29. Ra1 {[%clk
0:00:08.2]} 29... Qb4 {[%clk 0:00:41.9]} 30. Qc6 {[%clk 0:00:07.3]} 30... Qd4+
{[%clk 0:00:35.9]} 31. Kh1 {[%clk 0:00:06.1]} 31... f3 {[%clk 0:00:36.6]} 32.
gxf3 {[%clk 0:00:05.1]} 32... Rxf3 {[%clk 0:00:34.1]} 33. d6 {[%clk 0:00:03.3]}
33... Rd3 {[%clk 0:00:28]} 0-1

[Event "Late-Titled-Tuesday-Blitz-October-10-2023"]
[Site "Chess.com"]
[Date "2023.10.10"]
[Round "1"]
[White "Antik5"]
[Black "jcibarra"]
[Result "0-1"]
[WhiteElo "2477"]
[BlackElo "2906"]
[TimeControl "180+1"]
[EndTime "14:07:08 PDT"]
[Termination "jcibarra won by resignation"]

1. c4 {[%clk 0:02:59.4]} 1... e5 {[%clk 0:02:53.6]} 2. Nc3 {[%clk 0:02:57]} 2...
Nf6 {[%clk 0:02:53.7]} 3. Nf3 {[%clk 0:02:57.5]} 3... e4 {[%clk 0:02:54.2]} 4.
Ng5 {[%clk 0:02:56.8]} 4... c6 {[%clk 0:02:53.8]} 5. Ngxe4 {[%clk 0:02:57]} 5...
Nxe4 {[%clk 0:02:54.6]} 6. Nxe4 {[%clk 0:02:57.5]} 6... d5 {[%clk 0:02:55.4]} 7.
cxd5 {[%clk 0:02:57.9]} 7... cxd5 {[%clk 0:02:56.3]} 8. Ng3 {[%clk 0:02:58.2]}
8... h5 {[%clk 0:02:56.9]} 9. e3 {[%clk 0:02:56.3]} 9... h4 {[%clk 0:02:56.4]}
10. Ne2 {[%clk 0:02:54.8]} 10... Nc6 {[%clk 0:02:57]} 11. d4 {[%clk 0:02:50.6]}
11... Bf5 {[%clk 0:02:56.7]} 12. Bd2 {[%clk 0:02:38.9]} 12... Qf6 {[%clk
0:02:54.9]} 13. Nc3 {[%clk 0:02:11.7]} 13... O-O-O {[%clk 0:02:53.8]} 14. a3
{[%clk 0:01:52.9]} 14... Kb8 {[%clk 0:02:39.1]} 15. b4 {[%clk 0:01:47.8]} 15...
h3 {[%clk 0:02:34.9]} 16. g4 {[%clk 0:01:27.4]} 16... Be6 {[%clk 0:02:13.8]} 17.
b5 {[%clk 0:01:17.6]} 17... Na5 {[%clk 0:02:10.5]} 18. Ne4 {[%clk 0:01:11.1]}
18... dxe4 {[%clk 0:02:01.8]} 19. Bxa5 {[%clk 0:01:10.8]} 19... Rc8 {[%clk
0:02:02.3]} 20. Bb4 {[%clk 0:00:58.9]} 20... Qg5 {[%clk 0:01:46.2]} 21. Rg1
{[%clk 0:00:57.6]} 21... f5 {[%clk 0:01:38.8]} 22. d5 {[%clk 0:00:35.8]} 22...
Bd7 {[%clk 0:01:35.6]} 23. Qd4 {[%clk 0:00:26]} 23... f4 {[%clk 0:01:20.8]} 24.
Qxe4 {[%clk 0:00:25.4]} 24... Re8 {[%clk 0:01:13.1]} 25. Qd4 {[%clk 0:00:23]}
25... fxe3 {[%clk 0:01:12.5]} 26. f4 {[%clk 0:00:22.1]} 26... Qh4+ {[%clk
0:01:09.7]} 27. Rg3 {[%clk 0:00:22.3]} 27... e2 {[%clk 0:01:02.4]} 28. Bxe2
{[%clk 0:00:22.2]} 28... Bxg4 {[%clk 0:01:02.1]} 29. Ra2 {[%clk 0:00:21.7]}
29... Qxg3+ {[%clk 0:00:53]} 30. hxg3 {[%clk 0:00:20.9]} 30... h2 {[%clk
0:00:49.4]} 31. Kd2 {[%clk 0:00:06.2]} 31... Rxe2+ {[%clk 0:00:47.5]} 32. Kd3
{[%clk 0:00:06.4]} 32... h1=Q {[%clk 0:00:38.3]} 33. Rxe2 {[%clk 0:00:07]} 33...
Bxe2+ {[%clk 0:00:35.1]} 34. Kxe2 {[%clk 0:00:07.3]} 34... Rh2+ {[%clk
0:00:34.6]} 35. Kd3 {[%clk 0:00:05.7]} 35... Qd1+ {[%clk 0:00:32.3]} 36. Ke4
{[%clk 0:00:05.4]} 36... Re2+ {[%clk 0:00:30.2]} 37. Kf5 {[%clk 0:00:05.5]}
37... Qxd4 {[%clk 0:00:29.7]} 38. Kg6 {[%clk 0:00:05.8]} 38... Bxb4 {[%clk
0:00:28.8]} 39. Kh7 {[%clk 0:00:05.7]} 39... Qxd5 {[%clk 0:00:28.9]} 40. Kg6
{[%clk 0:00:05.8]} 40... Bxa3 {[%clk 0:00:28.8]} 41. Kh7 {[%clk 0:00:06]} 41...
Qxb5 {[%clk 0:00:29.2]} 42. Kg6 {[%clk 0:00:06.8]} 42... Rg2 {[%clk 0:00:29.2]}
43. Kh7 {[%clk 0:00:07.4]} 43... a5 {[%clk 0:00:29.5]} 44. Kg6 {[%clk
0:00:08.2]} 44... a4 {[%clk 0:00:30.2]} 0-1

[Event "Late-Titled-Tuesday-Blitz-October-10-2023"]
[Site "Chess.com"]
[Date "2023.10.10"]
[Round "1"]
[White "SHIVACalypso"]
[Black "chesskov1982"]
[Result "1/2-1/2"]
[WhiteElo "2449"]
[BlackElo "2817"]
[TimeControl "180+1"]
[EndTime "14:07:11 PDT"]
[Termination "Game drawn by repetition"]

1. Nf3 {[%clk 0:03:00.9]} 1... g6 {[%clk 0:02:59.3]} 2. c4 {[%clk 0:03:00.5]}
2... Bg7 {[%clk 0:02:59.7]} 3. g3 {[%clk 0:03:01.2]} 3... c6 {[%clk 0:03:00.2]}
4. Bg2 {[%clk 0:03:01.9]} 4... d6 {[%clk 0:03:00.5]} 5. O-O {[%clk 0:03:02.2]}
5... Qc7 {[%clk 0:03:00.4]} 6. Nc3 {[%clk 0:03:02.8]} 6... Nd7 {[%clk
0:03:00.8]} 7. d4 {[%clk 0:03:01]} 7... e5 {[%clk 0:03:01.1]} 8. e4 {[%clk
0:03:00.9]} 8... Ngf6 {[%clk 0:03:00.7]} 9. Re1 {[%clk 0:03:00.9]} 9... O-O
{[%clk 0:03:00.5]} 10. Be3 {[%clk 0:02:58.3]} 10... a6 {[%clk 0:03:00.5]} 11.
Qc2 {[%clk 0:02:55.8]} 11... Re8 {[%clk 0:02:56.9]} 12. Rad1 {[%clk 0:02:49.4]}
12... exd4 {[%clk 0:02:45.4]} 13. Nxd4 {[%clk 0:02:48.3]} 13... Ne5 {[%clk
0:02:46.2]} 14. b3 {[%clk 0:02:45]} 14... a5 {[%clk 0:02:45.6]} 15. h3 {[%clk
0:02:44.3]} 15... b6 {[%clk 0:02:40.1]} 16. f4 {[%clk 0:02:29.1]} 16... Ned7
{[%clk 0:02:34.2]} 17. Nf3 {[%clk 0:02:29.5]} 17... Bb7 {[%clk 0:02:27.2]} 18.
Re2 {[%clk 0:02:22.9]} 18... Nc5 {[%clk 0:02:27.2]} 19. e5 {[%clk 0:02:20.3]}
19... dxe5 {[%clk 0:02:22]} 20. Nxe5 {[%clk 0:02:21.2]} 20... Nh5 {[%clk
0:02:18.8]} 21. Bxc5 {[%clk 0:02:14.6]} 21... bxc5 {[%clk 0:02:17.7]} 22. Rd7
{[%clk 0:02:10.2]} 22... Qc8 {[%clk 0:02:14.3]} 23. Qd3 {[%clk 0:02:00.5]} 23...
Nxg3 {[%clk 0:01:52.4]} 24. Rd2 {[%clk 0:02:00]} 24... Nh5 {[%clk 0:01:48]} 25.
Nxf7 {[%clk 0:01:57.1]} 25... Bd4+ {[%clk 0:01:32.8]} 26. Rxd4 {[%clk 0:01:53]}
26... cxd4 {[%clk 0:01:32.2]} 27. Nd6 {[%clk 0:01:48.4]} 27... dxc3 {[%clk
0:01:21.1]} 28. Nxc8 {[%clk 0:01:47.7]} 28... cxd2 {[%clk 0:01:20.2]} 29. Qxd2
{[%clk 0:01:42.9]} 29... Raxc8 {[%clk 0:01:20.1]} 30. Qd6 {[%clk 0:01:37.5]}
30... Rcd8 {[%clk 0:01:17.8]} 31. Qc7 {[%clk 0:01:36.8]} 31... Ba8 {[%clk
0:01:12.1]} 32. f5 {[%clk 0:01:30]} 32... Rd1+ {[%clk 0:01:10]} 33. Kh2 {[%clk
0:01:29.8]} 33... Rd2 {[%clk 0:01:07.8]} 34. fxg6 {[%clk 0:01:29.2]} 34... hxg6
{[%clk 0:01:06.7]} 35. Qxa5 {[%clk 0:01:18.2]} 35... Ree2 {[%clk 0:01:06.4]} 36.
Qxa8+ {[%clk 0:01:18.1]} 36... Kf7 {[%clk 0:01:05.1]} 37. Qb7+ {[%clk
0:01:14.9]} 37... Kg8 {[%clk 0:00:58.8]} 38. Qxc6 {[%clk 0:01:11.3]} 38... Kh7
{[%clk 0:00:57]} 39. Kg1 {[%clk 0:01:04]} 39... Re1+ {[%clk 0:00:52.8]} 40. Kh2
{[%clk 0:01:04.1]} 40... Ree2 {[%clk 0:00:52.3]} 41. Kg1 {[%clk 0:01:04.5]}
41... Re1+ {[%clk 0:00:52]} 42. Kh2 {[%clk 0:01:04.5]} 42... Rf1 {[%clk
0:00:52.7]} 43. Qe4 {[%clk 0:00:52.3]} 43... Nf4 {[%clk 0:00:51.7]} 44. Qe7+
{[%clk 0:00:46.1]} 44... Kh6 {[%clk 0:00:50.5]} 45. Qh4+ {[%clk 0:00:45.8]}
45... Nh5 {[%clk 0:00:49.5]} 46. c5 {[%clk 0:00:27]} 46... Rff2 {[%clk
0:00:48.6]} 47. Qg4 {[%clk 0:00:27.4]} 47... Rxa2 {[%clk 0:00:46.5]} 48. c6
{[%clk 0:00:26.7]} 48... Nf4 {[%clk 0:00:45.8]} 49. Qh4+ {[%clk 0:00:23.5]}
49... Nh5 {[%clk 0:00:42.4]} 50. Qg4 {[%clk 0:00:22.8]} 50... Nf4 {[%clk
0:00:38.8]} 51. Qh4+ {[%clk 0:00:22.8]} 51... Kg7 {[%clk 0:00:37.7]} 52. Qe7+
{[%clk 0:00:22.8]} 52... Kh6 {[%clk 0:00:36.8]} 53. Qh4+ {[%clk 0:00:23]}
1/2-1/2

[Event "Late-Titled-Tuesday-Blitz-October-10-2023"]
[Site "Chess.com"]
[Date "2023.10.10"]
[Round "1"]
[White "Russian_berezka"]
[Black "falzehope0"]
[Result "1-0"]
[WhiteElo "2663"]
[BlackElo "2340"]
[TimeControl "180+1"]
[EndTime "14:07:13 PDT"]
[Termination "Russian_berezka won by resignation"]

1. d4 {[%clk 0:02:52.3]} 1... e6 {[%clk 0:02:58.2]} 2. Bf4 {[%clk 0:02:51.4]}
2... d5 {[%clk 0:02:58.5]} 3. e3 {[%clk 0:02:51.7]} 3... Ne7 {[%clk 0:02:58.3]}
4. Nd2 {[%clk 0:02:51.6]} 4... Ng6 {[%clk 0:02:58.8]} 5. Bg3 {[%clk 0:02:51.9]}
5... Be7 {[%clk 0:02:57.7]} 6. Bd3 {[%clk 0:02:50.7]} 6... f5 {[%clk 0:02:57.4]}
7. f4 {[%clk 0:02:48.9]} 7... O-O {[%clk 0:02:56.7]} 8. Ngf3 {[%clk 0:02:49]}
8... c5 {[%clk 0:02:57]} 9. c3 {[%clk 0:02:48.4]} 9... Nc6 {[%clk 0:02:57]} 10.
O-O {[%clk 0:02:48.5]} 10... Nh8 {[%clk 0:02:50.1]} 11. Ne5 {[%clk 0:02:47.9]}
11... Nf7 {[%clk 0:02:45.5]} 12. Ndf3 {[%clk 0:02:40.4]} 12... Nfxe5 {[%clk
0:02:43.9]} 13. Nxe5 {[%clk 0:02:38.2]} 13... Bd7 {[%clk 0:02:41.2]} 14. Qe1
{[%clk 0:02:28.6]} 14... Be8 {[%clk 0:02:40.7]} 15. Nxc6 {[%clk 0:02:25.6]}
15... Bxc6 {[%clk 0:02:35.8]} 16. b4 {[%clk 0:02:26]} 16... c4 {[%clk
0:02:33.7]} 17. Bc2 {[%clk 0:02:24.6]} 17... a5 {[%clk 0:02:34]} 18. a3 {[%clk
0:02:20.8]} 18... Qd7 {[%clk 0:02:31.6]} 19. Bh4 {[%clk 0:02:05.6]} 19... Bd6
{[%clk 0:02:29]} 20. Qd2 {[%clk 0:01:45.3]} 20... Ba4 {[%clk 0:02:23.7]} 21.
Rab1 {[%clk 0:01:38.7]} 21... axb4 {[%clk 0:02:21.3]} 22. axb4 {[%clk
0:01:36.5]} 22... b5 {[%clk 0:02:19]} 23. Ra1 {[%clk 0:01:28.2]} 23... Bxc2
{[%clk 0:01:32.3]} 24. Qxc2 {[%clk 0:01:29.1]} 24... Qb7 {[%clk 0:01:32]} 25.
Qb2 {[%clk 0:01:11.8]} 25... Rfc8 {[%clk 0:01:28.2]} 26. h3 {[%clk 0:01:07.6]}
26... Kf7 {[%clk 0:01:26.1]} 27. g4 {[%clk 0:01:07.1]} 27... g6 {[%clk
0:01:25.6]} 28. Rfb1 {[%clk 0:00:59.5]} 28... Bf8 {[%clk 0:01:23.1]} 29. Ra5
{[%clk 0:00:58.7]} 29... Rxa5 {[%clk 0:01:19.2]} 30. bxa5 {[%clk 0:00:59.6]}
30... b4 {[%clk 0:01:17.1]} 31. cxb4 {[%clk 0:00:57.6]} 31... Qb5 {[%clk
0:01:17.2]} 32. Qc3 {[%clk 0:00:55.5]} 32... Rb8 {[%clk 0:01:15.5]} 33. Be1
{[%clk 0:00:52.1]} 33... fxg4 {[%clk 0:01:15.2]} 34. hxg4 {[%clk 0:00:52]} 34...
h5 {[%clk 0:01:13.9]} 35. gxh5 {[%clk 0:00:49.3]} 35... gxh5 {[%clk 0:01:13.8]}
36. Qc2 {[%clk 0:00:47.2]} 36... Be7 {[%clk 0:01:12.4]} 37. Qh7+ {[%clk
0:00:46.9]} 37... Ke8 {[%clk 0:01:11.6]} 38. Qxh5+ {[%clk 0:00:47.2]} 38... Kd7
{[%clk 0:01:12.1]} 39. Qf7 {[%clk 0:00:45.4]} 39... Rf8 {[%clk 0:01:09]} 40. Qh7
{[%clk 0:00:41.1]} 40... Qa4 {[%clk 0:01:01.1]} 41. Bh4 {[%clk 0:00:37]} 41...
Re8 {[%clk 0:00:58.4]} 42. f5 {[%clk 0:00:33.5]} 42... Kd6 {[%clk 0:00:54.3]}
43. Bg3+ {[%clk 0:00:27.2]} 43... Kc6 {[%clk 0:00:52]} 44. Qf7 {[%clk 0:00:27]}
44... Kd7 {[%clk 0:00:26.3]} 45. Qxe6+ {[%clk 0:00:26.2]} 45... Kd8 {[%clk
0:00:22.4]} 46. Qb6+ {[%clk 0:00:23.3]} 1-0

[Event "Late-Titled-Tuesday-Blitz-October-10-2023"]
[Site "Chess.com"]
[Date "2023.10.10"]
[Round "1"]
[White "SanchezKelvin"]
[Black "Hirna2005"]
[Result "1-0"]
[WhiteElo "2610"]
[BlackElo "2275"]
[TimeControl "180+1"]
[EndTime "14:07:14 PDT"]
[Termination "SanchezKelvin won by resignation"]

1. e4 {[%clk 0:02:47.5]} 1... g6 {[%clk 0:03:00.5]} 2. g3 {[%clk 0:02:32.8]}
2... Bg7 {[%clk 0:03:00.8]} 3. Bg2 {[%clk 0:02:32.6]} 3... c5 {[%clk 0:03:00.6]}
4. Ne2 {[%clk 0:02:32.1]} 4... d6 {[%clk 0:03:00.7]} 5. O-O {[%clk 0:02:31.4]}
5... Nc6 {[%clk 0:03:00.6]} 6. c3 {[%clk 0:02:31.5]} 6... Nf6 {[%clk 0:02:58.5]}
7. d4 {[%clk 0:02:30.2]} 7... cxd4 {[%clk 0:02:58]} 8. cxd4 {[%clk 0:02:31.1]}
8... O-O {[%clk 0:02:57.3]} 9. Nbc3 {[%clk 0:02:30.5]} 9... Bd7 {[%clk
0:02:51.1]} 10. h3 {[%clk 0:02:30.7]} 10... Qc8 {[%clk 0:02:50.7]} 11. Kh2
{[%clk 0:02:30.3]} 11... a6 {[%clk 0:02:38.5]} 12. Be3 {[%clk 0:02:29.2]} 12...
b5 {[%clk 0:02:38.1]} 13. Rc1 {[%clk 0:02:27.8]} 13... Qd8 {[%clk 0:02:29.3]}
14. f4 {[%clk 0:02:24.3]} 14... Rc8 {[%clk 0:02:22.4]} 15. e5 {[%clk 0:02:17.8]}
15... Ne8 {[%clk 0:02:20.5]} 16. g4 {[%clk 0:02:12.2]} 16... Nc7 {[%clk
0:01:58.2]} 17. Ng3 {[%clk 0:01:58.6]} 17... e6 {[%clk 0:01:27.3]} 18. exd6
{[%clk 0:01:53.3]} 18... Ne8 {[%clk 0:01:27.5]} 19. Nce4 {[%clk 0:01:50.2]}
19... Nb4 {[%clk 0:01:26.1]} 20. Rxc8 {[%clk 0:01:36.8]} 20... Qxc8 {[%clk
0:01:25.9]} 21. a3 {[%clk 0:01:36.6]} 21... Nd5 {[%clk 0:01:25.8]} 22. Bg1
{[%clk 0:01:32]} 22... Qb8 {[%clk 0:01:25.6]} 23. Nc5 {[%clk 0:01:14]} 23...
Qxd6 {[%clk 0:01:25.7]} 24. Nge4 {[%clk 0:01:13.7]} 24... Qe7 {[%clk 0:01:04.9]}
25. Nxa6 {[%clk 0:01:06.9]} 25... Bc6 {[%clk 0:01:03.4]} 26. Nac5 {[%clk
0:01:03.1]} 26... Nd6 {[%clk 0:01:01.3]} 27. Ng3 {[%clk 0:00:56.6]} 27... Nc4
{[%clk 0:00:59]} 28. Qe2 {[%clk 0:00:56.1]} 28... Qc7 {[%clk 0:00:56.5]} 29. a4
{[%clk 0:00:38.8]} 29... Nxf4 {[%clk 0:00:50.9]} 30. Rxf4 {[%clk 0:00:35.8]}
30... Qxf4 {[%clk 0:00:50.3]} 31. Bxc6 {[%clk 0:00:33.7]} 31... Bxd4 {[%clk
0:00:43.2]} 32. Bxd4 {[%clk 0:00:26.6]} 32... Qxd4 {[%clk 0:00:43.2]} 33. Bxb5
{[%clk 0:00:21.8]} 33... Nxb2 {[%clk 0:00:30.9]} 34. Nce4 {[%clk 0:00:20.5]}
34... Rd8 {[%clk 0:00:28.5]} 35. h4 {[%clk 0:00:18.6]} 35... Nd1 {[%clk
0:00:26.4]} 36. Kh3 {[%clk 0:00:17.3]} 36... Qg1 {[%clk 0:00:23.9]} 37. Qf3
{[%clk 0:00:14.3]} 37... Rd2 {[%clk 0:00:19.1]} 38. g5 {[%clk 0:00:11.4]} 38...
Rh2+ {[%clk 0:00:18.1]} 39. Kg4 {[%clk 0:00:12]} 39... Ne3+ {[%clk 0:00:16.8]}
40. Kf4 {[%clk 0:00:11.8]} 40... Nd5+ {[%clk 0:00:17.1]} 41. Ke5 {[%clk
0:00:12.4]} 41... Qa1+ {[%clk 0:00:15.1]} 42. Kd6 {[%clk 0:00:12.8]} 42... Qa3+
{[%clk 0:00:15]} 43. Qxa3 {[%clk 0:00:12.5]} 1-0